bitfinex/quotes_BTCUSD_20220405
["timestamp","ask_amount","ask_price","bid_price","bid_amount"]
[1649171156709,0.054554,45818.0,45808.0,2.21288711]
[1649171156712,0.109108,45812.0,45808.0,2.21288711]
[1649171156811,0.054553,45813.0,45810.0,0.324384]
[1649171156904,0.054553,45813.0,45812.0,0.324384]
[1649171157004,0.42,45827.0,45812.0,1.91525105]
[1649171157104,0.42,45827.0,45814.0,0.324384]
[1649171157209,0.42,45827.0,45819.0,0.28686298]
[1649171157640,0.001,45820.0,45819.0,0.28686298]
[1649171157849,0.001,45820.0,45817.0,0.42587253]
[1649171158043,0.001,45820.0,45817.0,0.56957253]
[1649171158242,0.001,45820.0,45818.0,1.59086705]
[1649171158342,0.001,45820.0,45819.0,0.324384]
[1649171158441,0.001,45820.0,45819.0,0.054536]
[1649171158542,0.001,45820.0,45819.0,0.154536]
[1649171158794,0.001,45820.0,45819.0,0.47892]
[1649171159092,0.001,45820.0,45819.0,0.71460323]
[1649171159295,0.001,45820.0,45819.0,0.39021923]
[1649171159396,0.001,45820.0,45819.0,0.71460323]
[1649171159598,0.001,45820.0,45819.0,0.39021923]
[1649171160248,0.001,45820.0,45819.0,0.71460323]
[1649171160350,0.001,45820.0,45819.0,0.154536]
[1649171160449,0.001,45820.0,45819.0,0.47892]
[1649171160699,0.05504143,45822.0,45820.0,0.099]
[1649171160798,0.00050343,45822.0,45821.0,0.324384]
[1649171161002,0.109081,45823.0,45821.0,0.533461]
[1649171161101,0.109081,45823.0,45821.0,0.259077]
[1649171161200,0.109081,45823.0,45822.0,0.324384]
[1649171161359,0.10958442,45823.0,45822.0,0.6865208]
[1649171161468,0.10958442,45823.0,45822.0,1.0284368]
[1649171161557,0.01,45829.0,45823.0,0.6663]
[1649171161653,0.01,45829.0,45824.0,1.59174144]
[1649171161748,0.01,45829.0,45825.0,0.29395001]
[1649171161846,0.01,45829.0,45825.0,0.34400595]
[1649171161949,0.01,45829.0,45826.0,0.0437]
[1649171162048,0.01,45829.0,45826.0,0.71]
[1649171162147,0.064528,45829.0,45827.0,0.30235585]
[1649171162304,0.064528,45829.0,45828.0,0.368084]
[1649171162397,0.064528,45829.0,45828.0,0.418084]
[1649171162502,0.064528,45829.0,45828.0,0.518084]
[1649171162700,0.065528,45829.0,45828.0,0.518084]
[1649171162896,0.065528,45829.0,45828.0,0.1937]
[1649171163303,0.065528,45829.0,45828.0,0.518084]
[1649171163401,0.109054,45834.0,45828.0,0.518084]
[1649171163563,0.42,45847.0,45830.0,0.324384]
[1649171163656,0.42,45847.0,45833.0,1.59086705]
[1649171163765,0.0999,45849.0,45834.0,1.62357537]
[1649171163852,0.0999,45849.0,45836.0,1.59086705]
[1649171164054,0.0999,45849.0,45837.0,0.0437]
[1649171164204,0.0999,45849.0,45841.0,0.41334357]
[1649171164302,0.27032119,45848.0,45843.0,0.22260818]
[1649171164402,0.58456924,45848.0,45841.0,0.1437]
[1649171164502,0.16393113,45846.0,45841.0,0.1437]
[1649171164603,0.58456924,45848.0,45842.0,0.054507]
[1649171164808,0.31424805,45848.0,45843.0,0.3]
[1649171165105,0.00027718,45846.0,45843.0,0.3]
[1649171165305,0.00027718,45846.0,45842.0,0.154507]
[1649171165501,0.00027718,45846.0,45842.0,0.1]
[1649171165705,0.20027718,45846.0,45837.0,0.1437]
[1649171165805,0.064528,45844.0,45838.0,0.3]
[1649171165901,0.27113162,45841.0,45838.0,0.3437]
[1649171166002,0.01,45844.0,45838.0,0.0437]
[1649171166103,0.01,45844.0,45838.0,0.1437]
[1649171166202,0.00053793,45845.0,45838.0,0.1437]
[1649171166403,0.00010689,45843.0,45838.0,0.14419539]
[1649171166804,0.00010689,45843.0,45839.0,0.054518]
[1649171167004,0.00010689,45843.0,45841.0,0.00076227]
[1649171167104,0.109042,45842.0,45841.0,0.00076227]
[1649171167204,0.00010689,45843.0,45841.0,0.00076227]
[1649171167205,0.00010689,45843.0,45841.0,0.624384]
[1649171167309,0.00064484,45843.0,45841.0,0.76880173]
[1649171167405,0.00064484,45843.0,45842.0,0.624384]
[1649171167512,0.00064484,45843.0,45841.0,0.1437]
[1649171167513,0.00064484,45843.0,45841.0,0.1]
[1649171167606,0.00064484,45843.0,45842.0,0.0437]
[1649171167710,0.00064484,45843.0,45842.0,0.0427]
[1649171168205,0.28092916,45843.0,45842.0,0.0427]
[1649171168305,0.28092916,45843.0,45842.0,0.3427]
[1649171168410,0.28092916,45843.0,45842.0,0.0427]
[1649171168513,0.28092916,45843.0,45842.0,0.1427]
[1649171168713,0.57911581,45843.0,45842.0,0.1427]
[1649171169301,0.00010689,45843.0,45842.0,0.4427]
[1649171169410,0.00010689,45843.0,45842.0,2.03356705]
[1649171169505,0.00010689,45843.0,45842.0,0.4427]
[1649171169702,0.00010689,45843.0,45842.0,0.1427]
[1649171169801,0.00010689,45843.0,45842.0,0.0427]
[1649171169906,0.00010689,45843.0,45842.0,0.3427]
[1649171170001,0.00038547,45845.0,45842.0,0.3427]
[1649171170101,0.00038547,45845.0,45842.0,0.4427]
[1649171170203,0.00038547,45845.0,45842.0,0.1427]
[1649171170603,0.00038547,45845.0,45842.0,0.44221968]
[1649171170700,0.00010689,45845.0,45843.0,0.3]
[1649171171101,0.00010689,45845.0,45842.0,0.154517]
[1649171171202,0.00010689,45845.0,45842.0,0.054517]
[1649171171401,0.00010689,45845.0,45843.0,0.3]
[1649171171601,0.00187299,45843.0,45842.0,0.154517]
[1649171171750,0.00187299,45843.0,45842.0,0.054517]
[1649171171855,0.05452,45842.0,45840.0,0.1]
[1649171172722,0.05452,45842.0,45839.0,0.41893264]
[1649171172822,0.05452,45842.0,45839.0,0.20903]
[1649171172923,0.05452,45842.0,45839.0,0.25273]
[1649171173126,0.05452,45842.0,45841.0,0.324384]
[1649171173225,0.05452,45842.0,45841.0,0.3]
[1649171173324,0.05452,45842.0,45841.0,0.45]
[1649171173428,0.05452,45842.0,45841.0,0.15]
[1649171173926,0.05452,45842.0,45841.0,0.41500245]
[1649171174530,0.05452,45842.0,45841.0,0.15]
[1649171174727,0.05452,45842.0,45839.0,0.15273]
[1649171174827,0.05452,45842.0,45839.0,0.10903]
[1649171175427,0.05452,45842.0,45839.0,0.360072]
[1649171175630,0.05452,45842.0,45839.0,0.460072]
[1649171175731,0.05452,45842.0,45839.0,0.46052566]
[1649171175833,0.05452,45842.0,45839.0,0.460072]
[1649171175926,0.05452,45842.0,45839.0,0.460615]
[1649171176027,0.05452,45842.0,45839.0,0.75529747]
[1649171176127,0.05452,45842.0,45839.0,0.7562166]
[1649171176546,0.05452,45842.0,45840.0,0.354513]
[1649171176746,0.05452,45842.0,45840.0,0.454513]
[1649171176947,0.05452,45842.0,45840.0,0.154513]
[1649171177347,0.00053946,45843.0,45840.0,0.154513]
[1649171177748,0.00053946,45843.0,45840.0,0.1]
[1649171177847,0.054515,45845.0,45839.0,0.10903]
[1649171177848,0.104515,45845.0,45839.0,0.10903]
[1649171177946,0.054515,45845.0,45840.0,0.324384]
[1649171178047,0.00053986,45844.0,45841.0,0.00044]
[1649171178198,0.00053986,45844.0,45842.0,0.324384]
[1649171178299,0.00053986,45844.0,45843.0,0.3]
[1649171178397,0.00053986,45844.0,45843.0,0.57641016]
[1649171178599,0.00053986,45844.0,45843.0,0.67641016]
[1649171178747,0.00053986,45844.0,45843.0,0.37641016]
[1649171178948,0.00053986,45844.0,45843.0,0.424384]
[1649171179048,0.054509,45850.0,45844.0,0.03815516]
[1649171179149,0.054509,45850.0,45846.0,0.054509]
[1649171179349,0.28682193,45849.0,45846.0,0.054509]
[1649171179549,0.05,45849.0,45846.0,0.054509]
[1649171179650,0.05,45849.0,45847.0,0.3]
[1649171179903,0.054509,45850.0,45847.0,0.3]
[1649171180105,0.054509,45850.0,45847.0,0.35]
[1649171180255,0.054505,45853.0,45849.0,0.054505]
[1649171180352,0.054505,45853.0,45850.0,0.00068567]
[1649171180551,0.0002774,45851.0,45849.0,0.054505]
[1649171180853,0.0002774,45851.0,45850.0,0.55595235]
[1649171181051,0.0002774,45851.0,45850.0,0.65595235]
[1649171181301,0.0002774,45851.0,45850.0,0.45]
[1649171181401,0.119006,45859.0,45850.0,0.15]
[1649171181503,0.119006,45859.0,45852.0,0.054505]
[1649171181701,0.00027741,45853.0,45852.0,0.054505]
[1649171182555,0.05378041,45856.0,45852.0,0.054505]
[1649171182907,0.00027741,45855.0,45852.0,0.054505]
[1649171183605,0.00027741,45855.0,45853.0,0.25838047]
[1649171183853,0.01,45859.0,45854.0,0.408986]
[1649171183952,0.01,45859.0,45854.0,0.41047953]
[1649171184054,0.01,45859.0,45854.0,0.51047953]
[1649171184306,0.01,45859.0,45856.0,0.39343492]
[1649171184401,0.01,45859.0,45857.0,0.3]
[1649171184502,0.005,45859.0,45857.0,0.3]
[1649171185101,0.005,45859.0,45858.0,0.054494]
[1649171185301,0.00054066,45860.0,45858.0,0.054494]
[1649171185700,0.00054066,45860.0,45859.0,0.3]
[1649171186202,0.054493,45862.0,45855.0,0.08637992]
[1649171186353,0.23141676,45860.0,45855.0,0.13637992]
[1649171186754,0.05503365,45862.0,45858.0,0.054494]
[1649171186955,0.05503365,45862.0,45860.0,0.29748285]
[1649171187255,0.05503365,45862.0,45861.0,0.3]
[1649171187359,0.00054065,45862.0,45861.0,0.3]
[1649171187463,0.108976,45871.0,45862.0,0.00062926]
[1649171187622,0.29025043,45873.0,45862.0,0.00051112]
[1649171187720,0.00054065,45863.0,45862.0,0.00051112]
[1649171187819,0.00054065,45863.0,45862.0,0.354484]
[1649171188013,0.00054065,45863.0,45862.0,0.404484]
[1649171188115,0.00054065,45863.0,45862.0,0.504484]
[1649171188514,0.00054065,45863.0,45862.0,0.1]
[1649171188615,0.00054065,45863.0,45860.0,0.0437]
[1649171188616,0.3,45864.0,45850.0,0.2444]
[1649171188725,0.76988361,45869.0,45850.0,0.0437]
[1649171188726,0.2,45863.0,45850.0,0.0437]
[1649171188819,0.2,45858.0,45850.0,0.0437]
[1649171188916,0.3,45857.0,45845.0,0.7528]
[1649171189014,0.3,45857.0,45847.0,0.5]
[1649171189115,0.30219867,45849.0,45841.0,0.584]
[1649171189215,0.30219867,45849.0,45842.0,0.324384]
[1649171189316,0.159029,45857.0,45843.0,0.054513]
[1649171189515,0.24614596,45851.0,45845.0,0.26840419]
[1649171189622,0.108751,45853.0,45846.0,0.6663]
[1649171189716,0.25563885,45862.0,45847.0,0.324076]
[1649171189816,0.15563885,45861.0,45846.0,0.6663]
[1649171189915,0.15563885,45861.0,45847.0,0.324076]
[1649171190018,0.15563885,45861.0,45848.0,0.6663]
[1649171190116,0.15563885,45861.0,45849.0,0.324076]
[1649171190271,0.15563885,45861.0,45851.0,0.054501]
[1649171190272,0.00052202,45855.0,45851.0,0.054501]
[1649171190368,0.00052202,45855.0,45845.0,0.26840419]
[1649171190466,0.00052202,45855.0,45846.0,0.324076]
[1649171190566,0.00052202,45855.0,45845.0,0.98470419]
[1649171190670,0.26914464,45853.0,45845.0,0.98470419]
[1649171190768,0.26914464,45853.0,45845.0,1.08470419]
[1649171190870,0.26914464,45853.0,45846.0,0.109012]
[1649171190966,0.00052202,45855.0,45847.0,0.324076]
[1649171191068,0.109012,45856.0,45846.0,0.109012]
[1649171191170,0.109012,45856.0,45845.0,0.1]
[1649171191171,0.159012,45856.0,45845.0,0.1]
[1649171191407,0.00052203,45855.0,45846.0,0.36334939]
[1649171191554,0.00052203,45855.0,45847.0,0.324076]
[1649171191653,0.00052203,45855.0,45847.0,0.3247278]
[1649171191754,0.054503,45854.0,45847.0,0.474076]
[1649171191954,0.33780392,45854.0,45850.0,0.324076]
[1649171192152,0.33780392,45854.0,45850.0,0.474076]
[1649171192251,0.3141781,45858.0,45850.0,0.474076]
[1649171192252,0.05,45858.0,45852.0,0.32970876]
[1649171192358,0.05,45858.0,45854.0,0.0004446]
[1649171192456,0.15,45862.0,45853.0,0.367776]
[1649171192552,0.00052205,45855.0,45854.0,0.6663]
[1649171192650,0.00052205,45855.0,45854.0,1.290376]
[1649171192755,0.00052205,45855.0,45854.0,0.724076]
[1649171192952,0.00052205,45855.0,45854.0,0.883055]
[1649171193254,0.00052205,45855.0,45854.0,0.8180148]
[1649171193355,0.00052205,45855.0,45854.0,0.5180148]
[1649171193458,0.1,45862.0,45854.0,0.258979]
[1649171193655,0.054504,45861.0,45854.0,0.258979]
[1649171193754,0.00050504,45857.0,45854.0,0.158979]
[1649171194259,0.00050504,45857.0,45856.0,0.324076]
[1649171194354,0.05000504,45858.0,45856.0,0.1]
[1649171194455,0.34940872,45858.0,45856.0,0.15]
[1649171194655,0.34940872,45858.0,45856.0,0.1]
[1649171195103,0.39940872,45858.0,45856.0,0.1]
[1649171195411,0.39940872,45858.0,45849.0,0.05]
[1649171195503,0.26562787,45851.0,45845.0,0.4282567]
[1649171195601,0.26562787,45851.0,45847.0,0.324076]
[1649171195602,0.054515,45850.0,45847.0,0.324076]
[1649171195702,0.054518,45849.0,45847.0,0.324076]
[1649171196151,0.054518,45849.0,45841.0,0.3]
[1649171196255,0.054518,45849.0,45842.0,0.324076]
[1649171196552,0.22470096,45850.0,45844.0,0.054514]
[1649171196653,0.37465787,45851.0,45845.0,0.624076]
[1649171196756,0.109016,45856.0,45845.0,0.624076]
[1649171196854,0.7032,45862.0,45845.0,0.62453153]
[1649171196955,0.15,45862.0,45845.0,0.3]
[1649171197053,0.15,45862.0,45846.0,0.00044836]
[1649171197354,0.00054102,45859.0,45845.0,0.45]
[1649171197456,0.00054102,45859.0,45845.0,1.1163]
[1649171197557,0.00054102,45859.0,45850.0,0.03814903]
[1649171197664,0.00054102,45859.0,45851.0,0.62455943]
[1649171197760,0.00054102,45859.0,45854.0,0.24339163]
[1649171197857,0.00054102,45859.0,45855.0,0.3]
[1649171197961,0.00054102,45859.0,45855.0,0.35]
[1649171198157,0.00054102,45859.0,45855.0,0.15]
[1649171198262,0.15,45862.0,45855.0,0.45]
[1649171198355,0.135,45862.0,45855.0,0.45]
[1649171198558,0.00054106,45859.0,45856.0,0.108988]
[1649171199055,0.00054106,45859.0,45857.0,0.624076]
[1649171199159,0.00054106,45859.0,45858.0,0.624076]
[1649171199255,0.00054106,45859.0,45858.0,0.35]
[1649171199359,0.00054106,45859.0,45858.0,0.45]
[1649171199456,0.135,45862.0,45858.0,0.45]
[1649171199557,0.135,45862.0,45858.0,0.34364801]
[1649171199661,0.135,45862.0,45859.0,0.324076]
[1649171199761,0.00054105,45861.0,45859.0,0.32455638]
[1649171199859,0.00054105,45861.0,45859.0,0.42455638]
[1649171199960,0.00054105,45861.0,45859.0,0.10048038]
[1649171200060,0.00054105,45861.0,45860.0,0.324076]
[1649171200163,0.00054105,45861.0,45860.0,0.28807443]
[1649171200270,0.00054105,45861.0,45860.0,0.38807443]
[1649171200412,0.00054105,45861.0,45860.0,0.1]
[1649171200612,0.00054105,45861.0,45860.0,0.424076]
[1649171200713,0.135,45862.0,45860.0,0.1]
[1649171200812,0.135,45862.0,45860.0,0.208977]
[1649171200913,0.1,45862.0,45861.0,0.324076]
[1649171201011,0.1,45862.0,45861.0,0.378564]
[1649171201113,0.1,45862.0,45861.0,0.478564]
[1649171201317,0.1,45862.0,45861.0,1.08182791]
[1649171201766,0.1,45862.0,45861.0,0.778564]
[1649171202828,0.1,45862.0,45861.0,1.01195569]
[1649171203031,0.1,45862.0,45861.0,1.06195569]
[1649171204335,0.1,45862.0,45861.0,0.204488]
[1649171204435,0.1,45862.0,45861.0,0.474076]
[1649171204583,0.1,45862.0,45861.0,0.374076]
[1649171204684,0.1,45862.0,45861.0,0.474076]
[1649171205385,0.1,45862.0,45861.0,0.72679695]
[1649171205986,0.1,45862.0,45861.0,0.78129595]
[1649171206451,0.1,45862.0,45861.0,0.478575]
[1649171206556,0.1,45862.0,45861.0,0.154499]
[1649171206702,0.15,45862.0,45853.0,0.0109]
[1649171206801,0.15,45862.0,45854.0,0.5]
[1649171206999,0.0545,45860.0,45854.0,0.5]
[1649171207453,0.24410442,45857.0,45854.0,0.5]
[1649171207551,0.26407685,45856.0,45851.0,0.23807583]
[1649171207651,0.26407685,45856.0,45847.0,0.31091]
[1649171207751,0.26407685,45856.0,45848.0,0.324076]
[1649171207851,0.26407685,45856.0,45849.0,0.5]
[1649171208053,0.26407685,45856.0,45849.0,0.554508]
[1649171208157,0.26407685,45856.0,45850.0,0.624076]
[1649171208158,0.054512,45856.0,45850.0,0.624076]
[1649171208306,0.054512,45856.0,45850.0,0.3]
[1649171208404,0.054512,45856.0,45851.0,0.324076]
[1649171208703,0.054512,45856.0,45851.0,0.61107484]
[1649171208905,0.054512,45856.0,45852.0,0.3]
[1649171209003,0.054512,45856.0,45853.0,0.324076]
[1649171209207,0.054512,45856.0,45854.0,0.2285598]
[1649171209305,0.054498,45859.0,45855.0,0.3]
[1649171209508,0.05496714,45859.0,45855.0,0.3]
[1649171210296,0.05496714,45859.0,45856.0,0.054496]
[1649171210297,0.054498,45859.0,45856.0,0.054496]
[1649171210597,0.05497026,45859.0,45856.0,0.054496]
[1649171210999,0.05497026,45859.0,45857.0,0.324076]
[1649171211097,0.05497026,45859.0,45856.0,0.054496]
[1649171211403,0.3128812,45857.0,45856.0,0.378572]
[1649171211599,0.3128812,45857.0,45856.0,0.478572]
[1649171211800,0.054498,45859.0,45856.0,0.478572]
[1649171211901,0.00047226,45860.0,45856.0,0.778572]
[1649171212000,0.00047226,45860.0,45856.0,0.454496]
[1649171212249,0.00047226,45860.0,45858.0,0.00068212]
[1649171212349,0.00047226,45860.0,45859.0,0.054492]
[1649171212650,0.15,45862.0,45859.0,0.054492]
[1649171212753,0.15,45862.0,45860.0,0.3]
[1649171212953,0.15047198,45862.0,45861.0,0.3]
[1649171213355,0.10047198,45862.0,45861.0,0.3]
[1649171213455,0.10047198,45862.0,45861.0,0.624076]
[1649171213657,0.09547198,45862.0,45861.0,0.724076]
[1649171213893,0.095,45862.0,45861.0,0.724076]
[1649171214305,0.0004717,45864.0,45862.0,1.9]
[1649171214399,0.0018865,45871.0,45864.0,0.054484]
[1649171214499,0.0018865,45871.0,45865.0,0.334976]
[1649171214602,0.0018865,45871.0,45866.0,0.3]
[1649171214699,0.0018865,45871.0,45867.0,1.034076]
[1649171214848,0.0018865,45871.0,45867.0,1.194976]
[1649171214946,0.00105657,45871.0,45867.0,1.194976]
[1649171215150,0.01,45874.0,45867.0,1.19542073]
[1649171215246,0.01,45874.0,45867.0,2.78628778]
[1649171215345,0.01,45874.0,45869.0,0.990376]
[1649171215444,0.01,45874.0,45873.0,0.28329108]
[1649171215549,0.01,45874.0,45873.0,0.90736708]
[1649171215649,0.01,45874.0,45873.0,0.95736708]
[1649171215747,0.01,45874.0,45873.0,0.73329108]
[1649171216145,0.01,45874.0,45873.0,0.68329108]
[1649171216346,0.01,45874.0,45873.0,1.34959108]
[1649171216547,0.01,45874.0,45873.0,1.75210304]
[1649171216901,0.01,45874.0,45873.0,1.80657504]
[1649171217499,0.005,45874.0,45873.0,1.80657504]
[1649171217600,0.005,45874.0,45873.0,1.40406308]
[1649171218156,0.005,45874.0,45873.0,1.45406308]
[1649171218303,0.005,45874.0,45873.0,0.204472]
[1649171218517,0.005,45874.0,45871.0,0.16341]
[1649171218518,0.19847513,45872.0,45871.0,0.16341]
[1649171218603,0.19847513,45872.0,45865.0,0.7488]
[1649171218710,0.19847513,45872.0,45864.0,0.07627139]
[1649171218711,0.24847513,45872.0,45864.0,0.07627139]
[1649171218807,0.24847513,45872.0,45860.0,0.17849445]
[1649171218904,0.24847513,45872.0,45861.0,0.5109]
[1649171219005,0.15295633,45865.0,45861.0,0.5109]
[1649171219103,0.24847513,45872.0,45861.0,0.5109]
[1649171219206,0.24847513,45872.0,45862.0,0.054495]
[1649171219308,0.24273423,45865.0,45862.0,0.054495]
[1649171219406,0.24847513,45872.0,45862.0,0.054495]
[1649171219510,0.28707483,45865.0,45861.0,0.5109]
[1649171219704,0.054498,45864.0,45861.0,0.5109]
[1649171219803,0.054498,45864.0,45862.0,0.324076]
[1649171219903,0.054498,45864.0,45863.0,0.5]
[1649171220004,0.054498,45864.0,45861.0,0.0109]
[1649171220107,0.054498,45864.0,45862.0,0.324076]
[1649171220511,0.3,45863.0,45861.0,0.0005417]
[1649171220613,0.3109,45863.0,45861.0,0.0005417]
[1649171220706,0.3609,45863.0,45861.0,0.0005417]
[1649171220809,0.0609,45863.0,45861.0,0.0005417]
[1649171220916,0.26909052,45862.0,45861.0,0.0005417]
[1649171221206,0.26909052,45862.0,45848.0,0.17849636]
[1649171221387,0.2725622,45853.0,45850.0,0.324076]
[1649171221481,0.2725622,45853.0,45848.0,0.17849636]
[1649171221730,0.2725622,45853.0,45848.0,0.23300736]
[1649171222029,0.50228846,45853.0,45848.0,0.23300736]
[1649171222129,0.55228846,45853.0,45848.0,0.23300736]
[1649171222234,0.55228846,45853.0,45845.0,0.22412044]
[1649171222335,0.60679746,45853.0,45845.0,0.22412044]
[1649171222495,0.60679746,45853.0,45845.0,0.001]
[1649171222583,0.60679746,45853.0,45848.0,0.00052193]
[1649171222982,0.60679746,45853.0,45849.0,0.05451]
[1649171223081,0.3770712,45853.0,45849.0,0.05451]
[1649171223533,0.104509,45853.0,45849.0,0.05451]
[1649171223734,0.104509,45853.0,45849.0,0.05503192]
[1649171224783,0.104509,45853.0,45849.0,0.05451]
[1649171224884,0.104509,45853.0,45848.0,0.05]
[1649171224984,0.104509,45853.0,45849.0,0.00050195]
[1649171225556,0.104509,45853.0,45850.0,0.054509]
[1649171225957,0.104509,45853.0,45852.0,0.25754509]
[1649171226056,0.05,45853.0,45852.0,0.324076]
[1649171226205,0.05,45857.0,45852.0,0.109002]
[1649171226303,0.054501,45858.0,45852.0,0.109002]
[1649171226853,0.054501,45858.0,45853.0,0.054501]
[1649171226957,0.05,45859.0,45854.0,0.32465533]
[1649171227071,0.054494,45864.0,45855.0,0.50886777]
[1649171227155,0.30289065,45867.0,45856.0,0.32470341]
[1649171227258,0.19847513,45872.0,45855.0,0.28763432]
[1649171227356,0.19847513,45872.0,45855.0,0.51091446]
[1649171227655,0.19847513,45872.0,45856.0,0.4940559]
[1649171227756,0.19847513,45872.0,45856.0,0.5440559]
[1649171227857,0.24043011,45871.0,45861.0,0.31152795]
[1649171227958,0.24043011,45871.0,45864.0,0.054486]
[1649171228158,0.054486,45870.0,45864.0,0.054486]
[1649171228254,0.054486,45870.0,45865.0,0.27308602]
[1649171228360,0.054486,45870.0,45865.0,0.57308602]
[1649171228555,0.19847513,45872.0,45865.0,0.57308602]
[1649171228556,0.19847513,45872.0,45865.0,0.5735551]
[1649171228656,0.19847513,45872.0,45865.0,0.00046908]
[1649171229004,0.19847513,45872.0,45865.0,0.30046908]
[1649171229308,0.19847513,45872.0,45867.0,0.054484]
[1649171229407,0.19847513,45872.0,45868.0,0.3]
[1649171229605,0.19847513,45872.0,45868.0,0.55606218]
[1649171230156,0.19847513,45872.0,45868.0,0.25606218]
[1649171230255,0.19847513,45872.0,45868.0,0.3]
[1649171230555,0.19847513,45872.0,45867.0,0.054484]
[1649171230759,0.19847513,45872.0,45868.0,0.03268867]
[1649171230857,0.19847513,45872.0,45869.0,0.054481]
[1649171231060,0.24847513,45872.0,45869.0,0.054481]
[1649171231208,0.25968145,45871.0,45869.0,0.054481]
[1649171231376,0.25968145,45871.0,45866.0,0.11047562]
[1649171231377,0.25968145,45871.0,45867.0,0.3]
[1649171231460,0.36865945,45871.0,45866.0,0.00150962]
[1649171232111,0.36865945,45871.0,45866.0,0.00201802]
[1649171232212,0.108978,45871.0,45866.0,0.00201802]
[1649171232513,0.108978,45871.0,45867.0,0.000447]
[1649171232757,0.108978,45871.0,45866.0,0.00201802]
[1649171232957,0.30296313,45872.0,45867.0,0.05494179]
[1649171233257,0.30296313,45872.0,45867.0,0.2745169]
[1649171233359,0.24847513,45872.0,45867.0,0.2745169]
[1649171233466,0.24347513,45872.0,45867.0,0.054488]
[1649171233559,0.24347513,45872.0,45867.0,0.33229389]
[1649171233668,0.24347513,45872.0,45868.0,0.3]
[1649171233760,0.19847513,45872.0,45868.0,0.3]
[1649171233959,0.19847513,45872.0,45868.0,0.30043052]
[1649171234065,0.19847513,45872.0,45868.0,0.3]
[1649171234515,0.19847513,45872.0,45870.0,0.054476]
[1649171234711,0.19847513,45872.0,45870.0,0.0871637]
[1649171234814,0.19847513,45872.0,45871.0,0.108958]
[1649171235061,0.24847513,45872.0,45871.0,0.108958]
[1649171235463,0.24847513,45872.0,45870.0,0.0326877]
[1649171235871,0.19847513,45872.0,45871.0,0.624076]
[1649171235972,0.19847513,45872.0,45871.0,0.3]
[1649171236167,0.19847513,45872.0,45871.0,0.624076]
[1649171236266,0.19847513,45872.0,45871.0,0.674076]
[1649171236406,0.19847513,45872.0,45871.0,1.28042906]
[1649171237307,0.19847513,45872.0,45871.0,0.61412906]
[1649171237607,0.19847513,45872.0,45871.0,0.63820506]
[1649171238208,0.19847513,45872.0,45871.0,0.93820506]
[1649171238561,0.19847513,45872.0,45871.0,0.93956261]
[1649171239264,0.19847513,45872.0,45871.0,0.35135755]
[1649171239462,0.19847513,45872.0,45871.0,0.37543355]
[1649171239564,0.19847513,45872.0,45871.0,0.00135755]
[1649171243854,0.19347513,45872.0,45871.0,0.00135755]
[1649171245457,0.40059393,45872.0,45871.0,0.11031755]
[1649171245557,0.19347513,45872.0,45871.0,0.11031755]
[1649171247463,0.47299042,45872.0,45871.0,0.11031755]
[1649171247961,0.19347513,45872.0,45871.0,0.11031755]
[1649171248563,0.2206351,45870.0,45869.0,0.108964]
[1649171248762,0.2706351,45870.0,45869.0,0.108964]
[1649171248864,0.2706351,45870.0,45862.0,0.3]
[1649171248965,0.054487,45869.0,45862.0,0.3]
[1649171249063,0.35583086,45869.0,45867.0,0.00049239]
[1649171249868,0.054487,45869.0,45867.0,0.05497739]
[1649171250018,0.054487,45869.0,45867.0,0.054485]
[1649171250321,0.054487,45869.0,45866.0,0.00049178]
[1649171250920,0.30401405,45868.0,45866.0,0.00049178]
[1649171251122,0.41300105,45868.0,45866.0,0.00049178]
[1649171251226,0.41300105,45868.0,45862.0,0.054495]
[1649171251522,0.41300105,45868.0,45865.0,0.00047188]
[1649171252172,0.108987,45868.0,45865.0,0.00047188]
[1649171252470,0.1112649,45868.0,45860.0,0.0334]
[1649171252671,0.0022779,45868.0,45866.0,0.0005058]
[1649171252791,0.0022779,45868.0,45866.0,0.22495978]
[1649171253274,0.0022779,45868.0,45867.0,0.60782575]
[1649171253779,0.0022779,45868.0,45867.0,0.3]
[1649171253876,0.0022779,45868.0,45867.0,0.624076]
[1649171254374,0.0022779,45868.0,45867.0,0.3]
[1649171254480,0.0022779,45868.0,45867.0,0.624076]
[1649171254574,0.0022779,45868.0,45867.0,0.3]
[1649171254680,0.0022779,45868.0,45867.0,0.2981915]
[1649171254879,0.0022779,45868.0,45867.0,0.6222675]
[1649171255372,0.0022779,45868.0,45867.0,0.87312498]
[1649171255571,0.0022779,45868.0,45867.0,1.10446054]
[1649171256172,0.222913,45870.0,45867.0,1.10582648]
[1649171256273,0.222913,45870.0,45869.0,0.054473]
[1649171256374,0.222913,45870.0,45869.0,0.678549]
[1649171256573,0.222913,45870.0,45869.0,1.344849]
[1649171257079,0.05892478,45870.0,45869.0,1.344849]
[1649171257275,0.05892478,45870.0,45869.0,1.044849]
[1649171257677,0.05892478,45870.0,45869.0,1.31268073]
[1649171257780,0.05892478,45870.0,45869.0,1.044849]
[1649171258728,0.05892478,45870.0,45869.0,1.105749]
[1649171258900,0.05892478,45870.0,45869.0,1.149449]
[1649171258984,0.05892478,45870.0,45869.0,1.41728073]
[1649171259585,0.05892478,45870.0,45869.0,1.149449]
[1649171259787,0.05892478,45870.0,45869.0,1.52466277]
[1649171259885,0.19347513,45872.0,45871.0,0.6663]
[1649171259991,0.19347513,45872.0,45871.0,1.164664]
[1649171260085,0.19347513,45872.0,45871.0,1.52616821]
[1649171261188,0.19347513,45872.0,45871.0,0.592064]
[1649171262091,0.19347513,45872.0,45871.0,0.692064]
[1649171262188,0.19347513,45872.0,45871.0,1.358364]
[1649171263112,0.19347513,45872.0,45871.0,1.56634952]
[1649171263208,0.19347513,45872.0,45871.0,1.358364]
[1649171263811,0.19347513,45872.0,45871.0,0.692064]
[1649171264967,0.19347513,45872.0,45871.0,0.69334304]
[1649171265765,0.19347513,45872.0,45871.0,0.59964304]